Cogmind - Beta 15 @@@ ROGUE MODE // 2025.05.30 @ 15:37:44 Player: Demo Result: Destroyed by B-86 Titan with Railgun Performance ------------- Evolutions (5) 2500 Regions Visited (14) 2800 Robots Destroyed (206) 1030 Value Destroyed (9131) 9131 Prototype IDs (22) 440 Alien Tech Used (0) 0 Bonus (3446) 3446 TOTAL SCORE: 19347 Bonus ------- High Alert Combat Kills 1104 Follower Combat Kills 975 Entered Garrisons 400 Used RIF Installer 500 Met R17 at Cetus 500 Friendly Fire -33 Cogmind --------- Core Integrity 0/1000 Matter 87/300 Energy 77/100 System Corruption 2% Temperature Cool (6) Movement Core (50) Location -5/Garrison Parts ------- > --- POWER (1) -------- (None) > --- PROPULSION (3) --- (None) > --- UTILITY (9) ------ Improved Signal Interpreter Advanced Targeting Computer Relay Coupler [NC] (36) Relay Coupler [Heavy] (19) > --- WEAPON (4) ------- (None) > --- INVENTORY (5) ---- Matter Compressor (250) Advanced Sensor Array Remote Datajack Molecular Scythe Peak State ------------ > --- POWER ------------ Neutrino Core > --- PROPULSION ------- Improved Medium Treads Centrium Heavy Treads > --- UTILITY ---------- High-capacity Storage Unit Enhanced Optical Array Advanced Sensor Array Improved Signal Interpreter Advanced Targeting Computer Centrium Medium Armor Plating Relay Coupler [Grunt] Relay Coupler [Sentry] Relay Coupler [Hunter] > --- WEAPON ----------- Advanced Variable Charge Gun Advanced Variable Charge Gun Cooled Plasma Cannon Remote Datajack > --- INVENTORY -------- Fusion Reactor Improved Medium Treads Advanced Heat Sink Matter Compressor Experimental Sensor Array Centrium Medium Armor Plating Improved Hacking Suite Improved System Shield Relay Coupler [NC] Relay Coupler [Grunt] Relay Coupler [Heavy] Cooled Plasma Cannon Hypervelocity Gauss Rifle Magnetic Acceleration Cannon Advanced Datajack Multitool Molecular Scythe [Rating: 102] Favorites ----------- Power Deuterium Engine Engine Deuterium Engine Power Core Neutrino Core Reactor Fusion Reactor Propulsion Armored Wheel Treads Light Treads Leg Enhanced Armored Leg Wheel Armored Wheel Hover Unit Cooled Airjet Utility High-capacity Storage Unit Device Improved Heat Sink Storage High-capacity Storage Unit Processor Enhanced Optical Array Hackware Hacking Suite Protection Light Armor Plating Weapon Cooled Plasma Cannon Energy Gun Improved EM Shotgun Energy Cannon Cooled Plasma Cannon Ballistic Gun Hypervelocity Gauss Rifle Ballistic Cannon Magnetic Acceleration Cannon Launcher Grenade Launcher Special Weapon Remote Datajack Slashing Weapon Power Sword Special Melee Weapon Datajack Build | -11 -10 -10 -10 -8 -8 -8 -8 -6 -6 -6 -6 -6 -5 -5 ------- Run | Yrd Mat Min Sub Mat Sto Gar Rec Fac Ext Cet Arc Hub Fac Gar Slots Evolved 10 | . . . . 4 . . . 4 . . . . 2 . Power . | . . . . . . . . . . . . . . . Propulsion 1 | . . . . . . . . . . . . . 1 . Utility 7 | . . . . 2 . . . 4 . . . . 1 . Weapon 2 | . . . . 2 . . . . . . . . . . Parts Attached 191 | 5 6 11 10 20 5 20 2 47 8 13 5 12 16 11 Power 20 | . 1 2 1 2 . 3 . 4 . 2 1 . 3 1 Engine 12 | . 1 2 1 2 . 1 . 2 . . . . 2 1 Core 4 | . . . . . . 2 . . . . 1 . 1 . Reactor 4 | . . . . . . . . 2 . 2 . . . . Propulsion 31 | 2 2 3 3 4 2 3 . 6 2 . . 1 1 2 Treads 10 | 2 . . . . 2 1 . . 2 . . 1 1 1 Leg 1 | . . . . . . . . 1 . . . . . . Wheel 19 | . 2 3 3 4 . 2 . 4 . . . . . 1 Hover 1 | . . . . . . . . 1 . . . . . . Flight . | . . . . . . . . . . . . . . . Utility 76 | 1 1 3 2 6 2 6 2 22 4 4 2 7 8 6 Device 31 | 1 . 2 . 5 . 3 . 9 2 2 . 1 3 3 Storage 5 | . 1 . . 1 . 1 . 2 . . . . . . Processor 11 | . . . . . . . . 7 . . . 2 2 . Hackware 13 | . . . . . . . . 3 . . 2 3 3 2 Protection 16 | . . 1 2 . 2 2 2 1 2 2 . 1 . 1 Artifact . | . . . . . . . . . . . . . . . Weapon 64 | 2 2 3 4 8 1 8 . 15 2 7 2 4 4 2 Energy Gun 23 | 1 2 1 1 6 . 3 . 3 . 3 . 2 . 1 Energy Cannon 13 | . . . 1 1 1 1 . 6 1 . . 1 1 . Ballistic Gun 17 | 1 . 1 2 1 . 2 . 4 . 3 1 . 2 . Ballistic Cannon 1 | . . . . . . . . . . . . . 1 . Launcher 2 | . . 1 . . . . . 1 . . . . . . Special Weapon 3 | . . . . . . . . . . 1 . 1 . 1 Impact Weapon . | . . . . . . . . . . . . . . . Slashing Weapon 2 | . . . . . . 1 . 1 . . . . . . Piercing Weapon . | . . . . . . . . . . . . . . . Special Melee Weapon 3 | . . . . . . 1 . . 1 . 1 . . . Unidentified Prototypes 20 | . . 1 . 2 1 . . 10 . 3 . 1 2 . Parts Lost 63 | . 1 4 . 9 . 2 . 14 2 2 . 5 5 19 Power 7 | . . . . 1 . . . 2 . . . . 2 2 Propulsion 14 | . . 2 . 3 . 1 . 1 1 . . 2 . 4 Utility 15 | . . 1 . . . . . 5 . . . 1 1 7 Weapon 27 | . 1 1 . 5 . 1 . 6 1 2 . 2 2 6 Highest Loss Streak 10 | . 1 2 . 6 . 1 . 4 1 3 . 5 3 10 To Critical Strikes . | . . . . . . . . . . . . . . . Average Backups 19 | 3 12 19 19 18 19 19 20 19 20 19 18 19 19 11 Power . | . . . 2 1 1 . . . . . 1 1 1 . Propulsion 3 | 2 4 6 6 4 3 2 2 2 1 1 1 1 1 . Utility 9 | . 4 6 2 7 8 11 15 13 10 11 10 10 10 6 Weapon 3 | . 2 3 6 2 4 2 1 1 6 5 4 3 3 1 Tool/Special . | . . . . . . . . . . . . . . . Unused Backups 61 | 1 3 8 6 9 5 15 . 4 2 1 1 3 3 . Power 3 | . . . . 2 . . . 1 . . . . . . Propulsion 10 | 1 . 1 2 2 1 1 . 1 . . . 1 . . Utility 31 | . 3 3 4 2 1 12 . . 1 1 1 1 2 . Weapon 16 | . . 3 . 3 3 2 . 2 1 . . 1 1 . Tool/Special 1 | . . 1 . . . . . . . . . . . . Average Slot Usage (%) 95 | . 90 92 100 94 99 99 100 94 93 97 100 94 93 67 Engine 5 | . 9 14 14 8 9 7 9 3 . . . . 3 1 Reactor 1 | . . . . . . . . 2 6 6 2 . . . Treads 3 | . 2 . 12 . . 5 . . 1 . . 3 11 5 Wheel 12 | . 25 27 15 17 17 12 18 11 11 12 13 4 . 1 Device 11 | . 14 2 2 17 18 18 18 18 4 11 13 9 8 8 Storage 8 | . 12 14 14 9 9 9 9 6 6 6 6 6 5 3 Processor 8 | . . . . . . . . 10 20 20 20 16 17 17 Hackware 5 | . . . . . . . . 10 9 6 9 11 17 9 Protection 6 | . . 4 11 9 9 9 9 3 5 6 3 6 . 2 Energy Gun 10 | . 10 13 2 16 27 20 18 11 . 3 . 7 6 3 Energy Cannon 9 | . . . 7 7 8 11 16 12 13 9 13 8 1 3 Ballistic Gun 8 | . 14 14 18 8 . 4 . . 12 11 10 7 9 4 Peak Build Rating 102 | 6 11 17 17 33 34 36 38 72 73 84 81 100 102 99 Average Rating 48 | 3 9 9 15 26 31 33 36 57 69 76 74 83 96 58 On Entrance 43 | . 6 11 10 14 33 32 34 36 72 65 81 69 93 99 Naked Turns . | . . . . . . . . . . . . . . . Heaviest Build 100 | 3 50 53 61 68 67 69 72 86 97 98 98 100 83 84 Greatest Support 110 | 3 20 20 40 20 20 40 24 28 24 24 24 80 110 110 Greatest Overweight (x) 8 | . 2 2 6 3 3 6 2 6 8 7 4 3 . 8 Average Overweight (x) 2 | . 1 2 5 2 3 4 2 2 4 3 3 1 . 1 Largest Inventory Capacity 25 | 5 20 20 20 20 20 20 20 25 20 20 20 20 20 20 Average Capacity 19 | 5 19 20 20 20 20 20 20 20 20 20 20 20 20 15 Most Carried 20 | 5 20 20 20 20 20 20 20 20 20 20 20 20 20 20 Average Carried 19 | 3 12 19 19 18 19 19 20 19 19 19 19 19 19 10 Final Capacity 20 | 5 20 20 20 20 20 20 20 20 20 20 20 20 20 5 Final Carried 20 | 5 20 19 19 20 20 20 20 20 20 20 20 19 20 4 Class Distribution -------------------- 19% | Mutant 15% | Bothacker-Gunner 14% | Tank 13% | Scavenger-Tank 7% | Bothacker-Tank 6% | Scavenger-Skirmisher 6% | Scavenger-Gunner 5% | Bothacker-Skirmisher 3% | Hacker-Gunner Dominant Class ---------------- Mutant | -10/Materials Mutant | -10/Mines Mutant | -10/Subcaves Tank | -8/Materials Tank | -8/Storage Tank | -8/Garrison Bothacker-Tank | -8/Recycling Scavenger-Tank | -6/Factory Bothacker-Gunner | -6/Extension Commander-Gunner | -6/Cetus Bothacker-Gunner | -6/Archives Bothacker-Tank | -6/Hub_04(d) Scavenger-Skirmisher | -5/Factory Scavenger-Gunner | -5/Garrison Resources | -11 -10 -10 -10 -8 -8 -8 -8 -6 -6 -6 -6 -6 -5 -5 ----------- Run | Yrd Mat Min Sub Mat Sto Gar Rec Fac Ext Cet Arc Hub Fac Gar Matter Collected 5736 | 313 129 242 525 399 70 465 339 908 790 406 237 300 570 43 Remotely 258 | . . . . 258 . . . . . . . . . . Salvage Created 9764 | 187 310 262 201 1252 345 1559 224 1696 1498 486 492 409 843 . Parts 467 | 14 23 27 18 55 18 79 13 62 60 14 27 25 32 . Haulers Intercepted 6 | . 1 . . 2 1 . . 1 . . . . 1 . Recyclers Shooed 3 | . . 1 . 1 . . . 1 . . . . . . Parts Field Recycled . | . . . . . . . . . . . . . . . Retrieved Matter . | . . . . . . . . . . . . . . . Parts Self-Destructed 6 | . . . 6 . . . . . . . . . . . Prevented . | . . . . . . . . . . . . . . . Kills | -11 -10 -10 -10 -8 -8 -8 -8 -6 -6 -6 -6 -6 -5 -5 ------- Run | Yrd Mat Min Sub Mat Sto Gar Rec Fac Ext Cet Arc Hub Fac Gar Combat Hostiles Destroyed 149 | . 3 8 5 20 5 31 4 30 19 5 4 7 8 . Guns 73 | . 3 5 3 9 1 17 . 15 8 1 3 2 6 . Cannons 56 | . . . 2 4 4 10 4 11 10 3 1 5 2 . AOE 14 | . . 3 . 6 . 4 . 1 . . . . . . Classes Destroyed 20 | 2 4 2 2 3 1 3 . 2 1 . . . . . Worker 10 | . . 2 . 2 . . . 5 . . . . 1 . Builder 7 | . 1 3 . 1 . . . . 1 . . 1 . . Tunneler 6 | 5 . . . 1 . . . . . . . . . . Hauler 6 | . 1 . . 2 1 . . 1 . . . . 1 . Recycler 11 | 1 1 1 . 4 . . . 2 . . . . 2 . Mechanic 1 | . . . . . . . . 1 . . . . . . Operator 5 | . . . . . 1 . . . 1 . 2 . 1 . Watcher 8 | . 1 . . . . . . 4 . 1 . 2 . . Swarmer 32 | . . 4 . 4 . 11 . 8 1 . . 4 . . Saboteur 1 | . . . . . . . . 1 . . . . . . Grunt 55 | . 3 4 . 11 2 12 . 7 11 . . 1 4 . Brawler 1 | . . . . . . 1 . . . . . . . . Duelist 4 | . . . . 1 1 1 . 1 . . . . . . Sentry 18 | . . . . 3 2 1 2 1 5 . 4 . . . Specialist 4 | . . . . . . 2 . 2 . . . . . . Hunter 6 | . . . . 1 . 1 . 2 . . . . 2 . Programmer 14 | . . . . . . 2 . 8 1 . . 1 2 . Behemoth 2 | . . . . . . . . . 1 . . 1 . . Cetus Guard 5 | . . . . . . . . . . 5 . . . . Artisan 1 | . . . 1 . . . . . . . . . . . Subdweller 7 | . . . 5 . . . 2 . . . . . . . Thug 1 | . . . . . . . . . . 1 . . . . Savage 1 | . . . . . . . . . 1 . . . . . Guerrilla 1 | . . . . . . . . . . . 1 . . . Best Kill Streak 9 | 4 3 3 1 9 3 6 2 8 3 5 4 5 3 . Combat Bots Only 6 | . 2 3 1 6 3 6 2 5 3 4 2 4 2 . Max Kills in Single Turn 4 | 1 1 1 1 3 1 2 1 4 2 1 2 2 1 . Gunslinging 1 | . . . . 1 . . . 1 . . . . . . Exploded 2 | . . 1 . 2 . 2 . 1 . . . . . . Melee . | . . . . . . . . . . . . . . . Uniques/NPCs Destroyed . | . . . . . . . . . . . . . . . Combat | -11 -10 -10 -10 -8 -8 -8 -8 -6 -6 -6 -6 -6 -5 -5 -------- Run | Yrd Mat Min Sub Mat Sto Gar Rec Fac Ext Cet Arc Hub Fac Gar Hostile Shots Fired 1033 | . 13 63 28 82 11 103 3 267 103 29 10 62 108 151 Missed 320 | . 2 15 12 13 3 43 3 62 43 7 3 15 57 42 Hits 713 | . 11 48 16 69 8 60 . 205 60 22 7 47 51 109 Melee 2 | . . . . 1 . . . 1 . . . . . . Projectile 711 | . 11 48 16 68 8 60 . 204 60 22 7 47 51 109 AOE 1 | . . . . . . 1 . . . . . . . . Critical Strikes 30 | . . . . 3 . 2 . 7 2 3 1 2 2 8 Damage Taken 12923 | . 150 479 425 1109 131 1072 . 3114 757 639 167 834 905 3141 Core 2315 | . 29 71 74 207 19 113 . 417 53 48 24 255 194 811 Absorbed by Shields 171 | . . . . . . . . 128 . . . . . 43 Reduced by Siege Mode 21 | . . . . . . . . . . . . . . 21 Regen/Repaired (Parts) 157 | . . . . . . . . 157 . . . . . . Core Remaining (%) 43 | 100 . . 30 . . . 38 . . . . 6 . . Volleys Fired 561 | 21 19 50 25 54 9 96 7 97 54 23 15 25 48 18 Largest 4 | 2 2 2 2 4 4 4 4 4 4 4 4 4 4 4 Hottest 411 | 60 70 80 110 210 237 227 242 307 276 276 278 411 240 192 Shots Fired 1450 | 35 37 91 49 136 36 298 27 240 184 62 40 74 110 31 Gun 969 | 35 37 80 42 105 27 206 13 124 106 33 24 42 75 20 Cannon 435 | . . . 7 28 9 92 14 111 78 29 16 27 19 5 Launcher 19 | . . 11 . 3 . . . 5 . . . . . . Special 27 | . . . . . . . . . . . . 5 16 6 Kinetic 462 | 21 19 49 37 34 . 27 . 32 106 33 24 26 39 15 Thermal 799 | 14 13 31 12 84 27 161 21 202 78 29 16 43 55 13 Explosive 19 | . . 11 . 3 . . . 5 . . . . . . Electromagnetic 146 | . 5 . . 15 9 110 6 1 . . . . . . Robot Hit Streak 25 | 4 7 6 18 15 10 18 19 12 25 10 14 7 12 19 Robot Miss Streak 9 | 2 5 7 2 3 2 5 . 9 4 2 2 5 3 1 Penetration Max 2 | . . . . . . 1 . . 2 1 1 . . . Secondary Targets 3 | . . 1 . 1 . . . 1 . . . . . . Max Gunslinging Chain 1 | . . 1 . 1 . . . 1 . . . . . . Shots Hit Robots 881 | 14 23 49 36 94 24 155 14 151 112 35 38 45 67 24 Core Hits 442 | 7 12 24 13 49 13 74 8 124 49 18 10 18 23 . Critical Kills 24 | . . . . . . . . 2 11 2 5 2 2 . Critical Parts Destroyed 36 | . . 1 . . . 1 . 5 17 5 2 2 3 . Critical Strikes 83 | . 1 5 . 3 . 3 1 15 30 7 8 4 5 1 Burn 18 | . 1 4 . 3 . 2 1 7 . . . . . . Meltdown 2 | . . . . . . . . . 1 1 . . . . Destroy 63 | . . 1 . . . 1 . 8 29 6 8 4 5 1 Melee Attacks 35 | . . . . . . 1 1 3 12 . 9 9 . . Impact . | . . . . . . . . . . . . . . . Slashing 1 | . . . . . . . 1 . . . . . . . Piercing . | . . . . . . . . . . . . . . . Sneak Attacks 28 | . . . . . . 1 . . 12 . 9 6 . . Combat Hostiles . | . . . . . . . . . . . . . . . Follow-up Attacks . | . . . . . . . . . . . . . . . Damage Inflicted 20852 | 195 281 958 639 2084 535 3340 268 5086 2334 1174 766 1201 1511 480 Guns 10204 | 195 281 605 531 1165 318 1894 122 2126 526 150 331 484 1216 260 Cannons 8183 | . . . 108 466 103 1046 146 1861 1808 1024 435 717 295 174 Explosions 2408 | . . 353 . 453 114 400 . 1088 . . . . . . Melee . | . . . . . . . . . . . . . . . Ramming 11 | . . . . . . . . 11 . . . . . . Kinetic 4030 | 119 156 357 469 334 . 245 . 651 526 150 331 98 438 156 Thermal 13874 | 76 85 248 170 1326 372 2083 214 3533 1808 1024 435 1103 1073 324 Explosive 1444 | . . 353 . 202 . . . 889 . . . . . . Electromagnetic 1493 | . 40 . . 222 163 1012 54 2 . . . . . . Impact . | . . . . . . . . . . . . . . . Slashing . | . . . . . . . . . . . . . . . Piercing . | . . . . . . . . . . . . . . . Highest Corruption 9 | . 1 1 1 1 1 4 4 9 9 9 9 9 2 2 Average Corruption 4 | . 1 1 1 1 1 2 4 4 9 9 9 9 2 2 Corruption Purged . | . . . . . . . . . . . . . . . Corruption Blocked . | . . . . . . . . . . . . . . . Effects 216 | . 1 5 10 4 3 26 8 46 55 16 15 19 7 1 Message Errors 50 | . . 2 1 2 1 6 1 9 17 3 3 5 . . Matter Fused 51 | . 1 1 4 . 1 8 2 12 10 1 4 2 4 1 Heat Flow Errors 22 | . . . 1 . . 4 1 7 4 . 3 2 . . Energy Discharges 20 | . . 1 . 1 . 3 2 5 3 3 . 1 1 . Parts Rejected 3 | . . . . . . . . 1 1 . . 1 . . Parts Fused 1 | . . . . . . . . . 1 . . . . . Data Loss (minor) 32 | . . . 2 . 1 5 2 2 10 4 2 3 1 . Data Loss (major) 14 | . . . 2 . . . . 7 . 3 1 1 . . Misfires 9 | . . 1 . . . . . 1 3 1 . 3 . . Alerts 6 | . . . . . . . . . 2 1 1 1 1 . Weapon Failures 8 | . . . . 1 . . . 2 4 . 1 . . . Overload Shots 38 | . . . . . . . . 4 6 14 2 9 1 2 Effects 3 | . . . . . . . . . . 3 . . . . Energy Bleed 3 | . . . . . . . . . . 3 . . . . Overflow Damage 144 | . . . . 20 . 14 . 94 11 . . . 5 . Projectiles 114 | . . . . . . 14 . 84 11 . . . 5 . Explosions 30 | . . . . 20 . . . 10 . . . . . . Melee . | . . . . . . . . . . . . . . . Knockbacks 1 | . . . . . . . . . . . . . 1 . Impact . | . . . . . . . . . . . . . . . Kinetic 1 | . . . . . . . . . . . . . 1 . Secondary . | . . . . . . . . . . . . . . . Self-Inflicted Damage 354 | . . . . 142 . 207 . 5 . . . . . . Shots 10 | . . . . 5 . 5 . . . . . . . . Rammed 1 | . . . . . . . . 1 . . . . . . Targets Rammed 1 | . . . . . . . . 1 . . . . . . Kicked . | . . . . . . . . . . . . . . . Crushed . | . . . . . . . . . . . . . . . Highest Temperature 668 | 15 54 108 225 196 188 357 240 358 396 172 200 624 387 668 Average Temperature 90 | 10 18 34 94 69 71 77 88 98 98 73 90 190 92 281 Received Heat Transfer 3944 | . 78 162 93 423 72 192 . 440 288 9 27 423 126 1611 Effects 12 | . . . . . . 1 . 1 . . . 6 . 4 Shutdowns 3 | . . . . . . 1 . . . . . 2 . . Energy Bleed 2 | . . . . . . . . . . . . . . 2 Interference 1 | . . . . . . . . . . . . 1 . . Matter Decay 1 | . . . . . . . . 1 . . . . . . Short Circuit 1 | . . . . . . . . . . . . 1 . . Damage (major) 2 | . . . . . . . . . . . . 1 . 1 Damage (core) 2 | . . . . . . . . . . . . 1 . 1 Siege Activations 1 | . . . . . . . . . . . . . . 1 Total Turns 5 | . . . . . . . . . . . . . . 5 Longest Duration 5 | . . . . . . . . . . . . . . 5 Martial Activations . | . . . . . . . . . . . . . . . Shielding Activations . | . . . . . . . . . . . . . . . Robots Disrupted . | . . . . . . . . . . . . . . . Combat Hostiles . | . . . . . . . . . . . . . . . Robots Corrupted . | . . . . . . . . . . . . . . . Combat Hostiles . | . . . . . . . . . . . . . . . Parts Fried 3 | . . . . 1 . 2 . . . . . . . . Impact Corruptions . | . . . . . . . . . . . . . . . Robots Melted 6 | . . . . 1 . . . 3 1 1 . . . . Combat Hostiles 6 | . . . . 1 . . . 3 1 1 . . . . Parts Melted 54 | . . 2 2 9 3 3 1 14 9 2 2 4 3 . Heat Transferred 23122 | 175 333 1036 333 2880 668 3693 481 5674 2670 1380 660 1346 1323 470 Parts Sabotaged . | . . . . . . . . . . . . . . . Parts Stolen . | . . . . . . . . . . . . . . . Parts Stripped . | . . . . . . . . . . . . . . . Power Chain Reactions 12 | . . . . 3 3 6 . . . . . . . . Alert | -11 -10 -10 -10 -8 -8 -8 -8 -6 -6 -6 -6 -6 -5 -5 ------- Run | Yrd Mat Min Sub Mat Sto Gar Rec Fac Ext Cet Arc Hub Fac Gar Maximum Alert Level 5 | . . . . 1 . 5 3 3 2 1 . . . . Low Security (%) 36 | 100 100 100 . 25 100 4 . . . . 100 100 100 100 Level 1 23 | . . . . 74 . 11 . 53 22 100 . . . . Level 2 18 | . . . . . . 10 9 28 77 . . . . . Level 3 10 | . . . . . . 19 90 18 . . . . . . Level 4 6 | . . . . . . 37 . . . . . . . . Level 5 3 | . . . . . . 17 . . . . . . . . High Security . | . . . . . . . . . . . . . . . Max Security . | . . . . . . . . . . . . . . . Peak Influence 1838 | 10 47 74 . 354 171 1838 848 929 676 385 136 86 64 65 Initial 826 | . . 1 . . 113 85 826 386 452 310 101 . 35 . Average 432 | 2 16 22 . 227 125 1108 763 490 463 315 64 16 13 18 Influence Increases 7034 | 30 133 300 15 586 199 1913 103 1437 1089 294 118 357 330 130 Destroy 0b10 Robot/C 3340 | . 60 160 . 400 100 820 40 600 560 160 80 180 180 . Destroy 0b10 Robot/NC 320 | 30 20 30 . 50 10 15 . 65 40 10 10 15 25 . Destroy Leader 498 | . 24 40 . 94 32 30 . 120 72 . . 44 42 . Allied During Kill 527 | . . . . . . 93 2 . 273 103 8 31 17 . Trap Triggered on 0b10 70 | . . . . . 10 . . 40 . . . 10 . 10 Successful Hack 186 | . 14 . . . 3 49 . 75 17 . . 18 10 . Select Force Hacks 60 | . . . . . . . 60 . . . . . . . Disable Machine 450 | . . . . 15 30 . . 240 15 15 15 45 30 45 Anti-Garrison Action 700 | . . . . . . 700 . . . . . . . . Destroy Structure 408 | . . 40 . 27 14 116 1 137 22 6 5 14 26 . Advance Influence 100 | . . . . . . . . 100 . . . . . . Lose Combat Pursuer 375 | . 15 30 15 . . 90 . 60 90 . . . . 75 Influence Decreases 7004 | 30 129 250 69 316 337 207 1258 1197 1457 595 372 285 402 100 Entered New Map 2551 | . . 3 29 . 157 47 1012 397 471 245 153 . 37 . Time Decay 3097 | 30 120 212 40 226 180 . 206 660 546 230 159 199 289 . Lost Part 510 | . 9 35 . 90 . 20 . 140 20 20 . 50 26 100 Lost Ally 546 | . . . . . . 140 40 . 120 100 60 36 50 . Purge Threat 300 | . . . . . . . . . 300 . . . . . Squads Dispatched 27 | . 1 . . 3 . . . 8 4 . . 5 6 . Investigation 8 | . 1 . . 2 . . . 1 1 . . 1 2 . Extermination 6 | . . . . . . . . 3 . . . 1 2 . Reinforcement 11 | . . . . 1 . . . 2 3 . . 3 2 . Assault 2 | . . . . . . . . 2 . . . . . . Garrison . | . . . . . . . . . . . . . . . Intercept . | . . . . . . . . . . . . . . . Searches Triggered . | . . . . . . . . . . . . . . . Construction Impeded 4 | . . . . . . . . . 2 . . 1 1 . Haulers Reinforced 2 | . . . . . . . . 2 . . . . . . Active Scanning Responses . | . . . . . . . . . . . . . . . Cargo Convoy Interrupts 1 | . . . . . . . . 1 . . . . . . Stealth | -11 -10 -10 -10 -8 -8 -8 -8 -6 -6 -6 -6 -6 -5 -5 --------- Run | Yrd Mat Min Sub Mat Sto Gar Rec Fac Ext Cet Arc Hub Fac Gar Distress Signals 9 | . 2 1 . 1 . . . . 3 2 . . . . Communications Jammed 19 | . . . . . . . . 19 . . . . . . Distress Signals 19 | . . . . . . . . 19 . . . . . . Times Spotted 251 | . 10 11 9 24 7 46 6 44 39 10 5 19 10 11 Peak Tracking Total 7 | . 4 3 3 7 3 5 3 6 7 5 1 4 4 6 Tactical Retreats 17 | . 1 1 1 . . 4 2 3 3 . . . . 2 Traps | -11 -10 -10 -10 -8 -8 -8 -8 -6 -6 -6 -6 -6 -5 -5 ------- Run | Yrd Mat Min Sub Mat Sto Gar Rec Fac Ext Cet Arc Hub Fac Gar Traps Triggered 22 | . 1 . 1 . . 7 . 4 3 . . . 4 2 Indirectly . | . . . . . . . . . . . . . . . Trap Hack Attempts . | . . . . . . . . . . . . . . . Triggered . | . . . . . . . . . . . . . . . Disarmed . | . . . . . . . . . . . . . . . Reprogrammed 14 | . . . . . 4 . . 10 . . . . . . Reused 6 | . . . . . 1 . . 4 . . . . . 1 Traps Extracted . | . . . . . . . . . . . . . . . Installed 2 | . . . . . . . . . . . . . . 2 Triggered 7 | . . . . . 1 . . 4 . . . 1 . 1 Most Traps Carried 1 | . . . . . . . . . . . . . . 1 Objects Rigged 3 | . . . . . . . . 3 . . . . . . Exploded 1 | . . . . . . . . 1 . . . . . . Machines | -11 -10 -10 -10 -8 -8 -8 -8 -6 -6 -6 -6 -6 -5 -5 ---------- Run | Yrd Mat Min Sub Mat Sto Gar Rec Fac Ext Cet Arc Hub Fac Gar Machines Disabled 41 | . . . . 1 2 8 . 16 2 2 1 3 2 4 Max in Single Turn 7 | . . . . 1 1 1 . 7 1 1 1 1 1 1 Garrison Relay 6 | . . . . . . 6 . . . . . . . . Phase Generator 1 | . . . . . . 1 . . . . . . . . Energy Cycler 1 | . . . . . . . . . 1 . . . . . Machines Repaired . | . . . . . . . . . . . . . . . Machines Dismantled . | . . . . . . . . . . . . . . . Machines Sabotaged . | . . . . . . . . . . . . . . . Overloaded Fab Kills . | . . . . . . . . . . . . . . . Hacking | -11 -10 -10 -10 -8 -8 -8 -8 -6 -6 -6 -6 -6 -5 -5 --------- Run | Yrd Mat Min Sub Mat Sto Gar Rec Fac Ext Cet Arc Hub Fac Gar Machines Accessed 46 | . 3 . . 2 4 4 3 12 6 2 1 5 4 . Terminals 31 | . 3 . . 1 3 4 . 6 6 2 . 5 1 . Fabricators 3 | . . . . . . . . 2 . . . . 1 . Repair Stations 1 | . . . . . . . . 1 . . . . . . Recycling Units 6 | . . . . 1 . . 2 2 . . . . 1 . Scanalyzers 1 | . . . . . . . . 1 . . . . . . Garrison Access 2 | . . . . . 1 . . . . . . . 1 . Total Hacks 137 | . 11 . . 6 14 8 3 42 15 4 12 10 12 . Successful 72 | . 3 . . 1 7 4 3 25 7 1 12 5 4 . Failed 65 | . 8 . . 5 7 4 . 17 8 3 . 5 8 . Catastrophic 16 | . . . . 1 1 3 . 5 3 1 . 1 1 . Database Lockouts . | . . . . . . . . . . . . . . . Manual 56 | . 11 . . . 5 2 2 20 4 1 . 5 6 . Terminals 88 | . 11 . . 3 11 8 . 22 15 4 . 10 4 . Fabricators 8 | . . . . . . . . 6 . . . . 2 . Repair Stations 5 | . . . . . . . . 5 . . . . . . Recycling Units 14 | . . . . 3 . . 2 5 . . . . 4 . Scanalyzers 4 | . . . . . . . . 4 . . . . . . Garrison Access 5 | . . . . . 3 . . . . . . . 2 . Terminal Hacks 41 | . 1 . . . 5 4 1 6 7 1 12 4 . . Record 14 | . . . . . . . 1 . . 1 12 . . . Prototype ID Bank 1 | . . . . . 1 . . . . . . . . . Open Door 4 | . . . . . 1 1 . . 2 . . . . . Level Access Points 1 | . . . . . . . . . . . . 1 . . Branch Access Points 3 | . . . . . . . . 1 1 . . 1 . . Emergency Access Points 1 | . . . . . . 1 . . . . . . . . Alert Level 2 | . . . . . . . . 1 1 . . . . . Unreport Threat 2 | . . . . . . . . . 2 . . . . . Locate Traps 4 | . 1 . . . 1 . . 1 1 . . . . . Reprogram Traps 5 | . . . . . 2 . . 3 . . . . . . Recall Investigation 1 | . . . . . . . . . . . . 1 . . Recall Reinforcements 1 | . . . . . . . . . . . . 1 . . Garrison Registry 1 | . . . . . . 1 . . . . . . . . Patrol Navigation 1 | . . . . . . 1 . . . . . . . . Fabricator Hacks 1 | . . . . . . . . 1 . . . . . . Network Status 1 | . . . . . . . . 1 . . . . . . Repair Station Hacks 4 | . . . . . . . . 4 . . . . . . Scan Component 2 | . . . . . . . . 2 . . . . . . Repair 2 | . . . . . . . . 2 . . . . . . Recycling Unit Hacks 3 | . . . . 1 . . . 1 . . . . 1 . Retrieve Components 3 | . . . . 1 . . . 1 . . . . 1 . Scanalyzer 4 | . . . . . . . . 4 . . . . . . Insert Component 2 | . . . . . . . . 2 . . . . . . Analyze 2 | . . . . . . . . 2 . . . . . . Garrison Access Hacks 2 | . . . . . 1 . . . . . . . 1 . Unlock Access 2 | . . . . . 1 . . . . . . . 1 . Unauthorized Hacks 17 | . 2 . . . 1 . 2 9 . . . 1 2 . Terminals 8 | . 2 . . . 1 . . 4 . . . 1 . . Track 1 | . . . . . . . . 1 . . . . . . Botnet 4 | . 1 . . . 1 . . 1 . . . 1 . . Detonate 1 | . . . . . . . . 1 . . . . . . Disrupt 1 | . . . . . . . . 1 . . . . . . Operators 1 | . 1 . . . . . . . . . . . . . Fabricators 3 | . . . . . . . . 3 . . . . . . Report 1 | . . . . . . . . 1 . . . . . . Fabnet 2 | . . . . . . . . 2 . . . . . . Repair Stations . | . . . . . . . . . . . . . . . Recycling Units 6 | . . . . . . . 2 2 . . . . 2 . Monitor 2 | . . . . . . . . 1 . . . . 1 . Recyclers 2 | . . . . . . . . 1 . . . . 1 . Tunnel 2 | . . . . . . . 2 . . . . . . . Scanalyzers . | . . . . . . . . . . . . . . . Garrison Access . | . . . . . . . . . . . . . . . Data Cores Recovered 1 | . . . . . 1 . . . . . . . . . Used . | . . . . . . . . . . . . . . . Hacking Detections 38 | . 3 . . 2 4 2 . 11 5 2 . 5 4 . Full Trace Events 8 | . 1 . . 2 . 1 . 1 . . . 1 2 . Feedback Events 2 | . . . . 1 . 1 . . . . . . . . Corruption 2 | . . . . 1 . 1 . . . . . . . . Feedback Blocked . | . . . . . . . . . . . . . . . Robot Schematics Acquired . | . . . . . . . . . . . . . . . Robots Built . | . . . . . . . . . . . . . . . Authchips . | . . . . . . . . . . . . . . . Time . | . . . . . . . . . . . . . . . Total Robot Build Rating . | . . . . . . . . . . . . . . . Part Schematics Acquired 2 | . . . . . . . . 2 . . . . . . Parts Built . | . . . . . . . . . . . . . . . Authchips . | . . . . . . . . . . . . . . . Time . | . . . . . . . . . . . . . . . Total Part Build Rating . | . . . . . . . . . . . . . . . Parts Repaired 2 | . . . . . . . . 2 . . . . . . Time 64 | . . . . . . . . 64 . . . . . . Parts Recycled . | . . . . . . . . . . . . . . . Recycled Matter . | . . . . . . . . . . . . . . . Retrieved Matter . | . . . . . . . . . . . . . . . Retrieved Components 20 | . . . . 10 . . . 2 . . . . 8 . Parts Scanalyzed 2 | . . . . . . . . 2 . . . . . . Part Schematics Acquired 2 | . . . . . . . . 2 . . . . . . Parts Damaged . | . . . . . . . . . . . . . . . Bothacking | -11 -10 -10 -10 -8 -8 -8 -8 -6 -6 -6 -6 -6 -5 -5 ------------ Run | Yrd Mat Min Sub Mat Sto Gar Rec Fac Ext Cet Arc Hub Fac Gar Used RIF Installer 1 | . . . . . . 1 . . . . . . . . Robots Hacked 18 | . . . . . . . . . . . 6 5 7 . Non-combat 9 | . . . . . . . . . . . 6 2 1 . Combat 9 | . . . . . . . . . . . . 3 6 . Robot Hacks Applied 29 | . . . . . . . . . . . 9 8 12 . parse_system 1 | . . . . . . . . . . . 1 . . . check_alert 3 | . . . . . . . . . . . 2 . 1 . find_terminals 1 | . . . . . . . . . . . . 1 . . locate_traps 1 | . . . . . . . . . . . . 1 . . reprogram_traps 1 | . . . . . . . . . . . . 1 . . map_route 1 | . . . . . . . . . . . . 1 . . mark_security 1 | . . . . . . . . . . . . 1 . . find_shortcuts 1 | . . . . . . . . . . . . . 1 . find_garrison 1 | . . . . . . . . . . . . . 1 . scatter_targeting 4 | . . . . . . . . . . . . . 4 . link_complan 1 | . . . . . . . . . . . . . 1 . disrupt_area 1 | . . . . . . . . . . . . . 1 . spike_heat 1 | . . . . . . . . . . . . . 1 . overload_power 1 | . . . . . . . . . . . . . 1 . streamctrl_high 1 | . . . . . . . . . . . . 1 . . formatsys_low 6 | . . . . . . . . . . . 6 . . . formatsys_high 3 | . . . . . . . . . . . . 2 1 . Relay Couplers Released 20 | . . . . . . 20 . . . . . . . . Machine Destruction 20 | . . . . . . 20 . . . . . . . . Attached 9 | . . . . . . . . 1 . . 2 3 1 2 Fabnet Peak Effective % 6 | . . . . . . . . . . . . . 6 6 Robots Rewired 24 | . . . . . . 7 . . 15 . . . . 2 Allies Hacked 1 | . . . . . . 1 . . . . . . . . Hacks Repelled . | . . . . . . . . . . . . . . . Allies | -11 -10 -10 -10 -8 -8 -8 -8 -6 -6 -6 -6 -6 -5 -5 -------- Run | Yrd Mat Min Sub Mat Sto Gar Rec Fac Ext Cet Arc Hub Fac Gar Total Allies 39 | . . 1 . . . 9 . . 17 . 6 3 1 2 Largest Group 10 | . . 1 1 . . 6 1 . 10 10 6 6 3 1 Highest-Rated Group 302 | . . 31 31 . . 126 16 . 302 297 259 259 106 148 Highest-Rated Ally 148 | . . 31 31 . . 31 16 . 39 39 45 45 41 148 Total Orders 1 | . . . . . . . . . . . . 1 . . GUARD 1 | . . . . . . . . . . . . 1 . . Ally Attacks 173 | . . . 5 . . 40 . . 57 30 . 10 26 5 Total Damage 3869 | . . . 82 . . 932 . . 1112 588 . 368 426 361 Kills 31 | . . . 2 . . 10 . . 12 4 . 2 1 . Allies Corrupted . | . . . . . . . . . . . . . . . Allies Melted . | . . . . . . . . . . . . . . . Intel | -11 -10 -10 -10 -8 -8 -8 -8 -6 -6 -6 -6 -6 -5 -5 ------- Run | Yrd Mat Min Sub Mat Sto Gar Rec Fac Ext Cet Arc Hub Fac Gar Active Infowar (turns) 7736 | 10 385 160 205 70 . . . 2480 1576 493 367 664 1123 203 Optics 6904 | . . . . . . . . 2478 1576 493 367 664 1123 203 Sensors 1465 | . . . . . . . . 43 270 . . 57 1065 30 Terrain 438 | 10 385 43 . . . . . . . . . . . . Structural 392 | . . 117 205 70 . . . . . . . . . . Traps 45 | . . . . . . . . . . . . . . 45 Triangulation 37 | . . . . . . . . 37 . . . . . . Jamming 2183 | . . . . . . . . 2183 . . . . . . Robot Analysis Total . | . . . . . . . . . . . . . . . Derelict Logs Recovered 2 | . . 1 1 . . . . . . . . . . . Drone Launches . | . . . . . . . . . . . . . . . Drone Recoveries . | . . . . . . . . . . . . . . . Exploration | -11 -10 -10 -10 -8 -8 -8 -8 -6 -6 -6 -6 -6 -5 -5 ------------- Run | Yrd Mat Min Sub Mat Sto Gar Rec Fac Ext Cet Arc Hub Fac Gar Turns Passed 13236 | 115 385 836 1467 531 375 2173 422 2499 1576 493 367 666 1123 208 Spaces Moved 7022 | 74 276 572 753 239 247 1035 323 1393 723 258 196 271 544 118 Core 183 | 74 38 . . . . . . . . . . . . 71 Treads 718 | . . . 4 . . 15 . . . . . 140 544 15 Legs . | . . . . . . . . . . . . . . . Wheels 6121 | . 238 572 749 239 247 1020 323 1393 723 258 196 131 . 32 Hover . | . . . . . . . . . . . . . . . Flight . | . . . . . . . . . . . . . . . Fastest Speed 50 | 50 50 110 110 110 125 120 120 120 135 135 135 135 160 50 Average Speed 138 | 50 101 110 156 122 125 148 120 133 153 141 136 189 160 102 Slowest Speed 320 | 50 110 110 240 125 125 250 120 180 210 195 150 240 160 320 Overloaded Moves . | . . . . . . . . . . . . . . . Propulsion Burnouts . | . . . . . . . . . . . . . . . Robots Hopped . | . . . . . . . . . . . . . . . Potential Cave-ins . | . . . . . . . . . . . . . . . Cave-ins Triggered . | . . . . . . . . . . . . . . . Exploration Rate (%) 52 | 3 52 91 45 19 42 94 58 36 86 85 94 37 15 23 Regions Visited 14 Branch Regions 8 Pre-discovered Areas 3 | . . 1 . . . . 2 . . . . . . . Known Exits Taken 7 | . . . . . 1 . . 1 1 1 1 1 1 . Unknown Exits Taken 6 | 1 1 1 1 1 . . 1 . . . . . . . Scrap Searched 4 | . . 1 3 . . . . . . . . . . . Spaces Dug 44 | . . 10 . 18 . . 1 13 . . . 2 . . Terrain Destroyed 409 | . . 45 . 35 13 98 1 164 19 1 5 15 13 . Melee 1 | . . . . . . . 1 . . . . . . . Projectile 78 | . . . . 1 . 2 . 23 18 1 5 15 13 . AOE 329 | . . 45 . 34 13 96 . 141 . . . . . . Terrain Rammed . | . . . . . . . . . . . . . . . Walls Destroyed . | . . . . . . . . . . . . . . . Machines Disabled . | . . . . . . . . . . . . . . . Actions | -11 -10 -10 -10 -8 -8 -8 -8 -6 -6 -6 -6 -6 -5 -5 --------- Run | Yrd Mat Min Sub Mat Sto Gar Rec Fac Ext Cet Arc Hub Fac Gar Total 9417 | 116 343 687 987 376 293 1479 338 1849 1056 337 271 383 724 178 Wait 905 | 7 15 27 159 13 10 150 2 209 162 17 34 35 65 . Move 7009 | 73 275 571 752 238 246 1034 322 1392 722 257 195 270 544 118 Hop . | . . . . . . . . . . . . . . . Pick Up 163 | 8 22 9 13 24 9 30 . 16 1 4 2 9 14 2 Fast Attach 104 | 3 1 1 1 6 1 3 . 39 7 10 2 7 21 2 Attach 65 | 2 3 5 1 11 1 5 . 10 . 1 2 7 7 10 Detach 8 | . . 1 . . . . . 3 2 . 1 1 . . Swap 137 | . 4 13 20 10 6 23 4 18 8 9 5 9 3 5 Drop 206 | 2 4 10 16 20 11 38 2 40 8 13 4 11 22 5 Fire 561 | 21 19 50 25 54 9 96 7 97 54 23 15 25 48 18 Melee 35 | . . . . . . 1 1 3 12 . 9 9 . . Ram 1 | . . . . . . . . 1 . . . . . . Kick . | . . . . . . . . . . . . . . . Crush . | . . . . . . . . . . . . . . . Escape Stasis 109 | . . . . . . 48 . 21 24 . . . . 16 Rewire 109 | . . . . . . 51 . . 56 . 2 . . . Trap 2 | . . . . . . . . . . . . . . 2 Miscellaneous 3 | . . . . . . . . . . 3 . . . . Route ------- -11/Scrapyard -10/Materials -10/Mines (discovered 3 exits: [*Mat x2] / [*Sub]) -10/Subcaves -8/Materials -8/Storage -8/Garrison (discovered 3 exits: *Rec x3) -8/Recycling -6/Factory (discovered 4 exits: Low x2 / *Ext x2) -6/Extension (discovered 3 exits: *Fac x2 / *Cet) -6/Cetus (discovered 2 exits: *Fac / *Arc) -6/Archives (discovered 3 exits: *Fac / *Hub x2) -6/Hub_04(d) (discovered 4 exits: *Fac x4) -5/Factory (discovered 2 exits: *Upp / Gar) -5/Garrison History --------- Turn | Location | Event 5 | -11/Scrapyard | Discovered new exit (range 15) 116 | -11/Scrapyard | Entered Materials 300 | -10/Materials | Build established: Mutant 478 | -10/Materials | Discovered new exit (range 16) 501 | -10/Materials | Entered Mines 515 | -10/Mines | Learned Materials trap positions 813 | -10/Mines | Found a damaged Exp. Sensor Array with a note attached 816 | -10/Mines | Found Prototype Device 816 | -10/Mines | Identified Exp. Sensor Array 855 | -10/Mines | Discovered new exit (range 9) 1265 | -10/Mines | Discovered new exit (range 12) 1268 | -10/Mines | Escorted by a lone wolf Derelict 1268 | -10/Mines | Discovered new exit (range 9) 1288 | -10/Mines | Learned location of Storage (-8) 1337 | -10/Mines | Entered Subcaves 1337 | -10/Subcaves | Accompanied by 1 ally 1338 | -10/Subcaves | A swath of the cavern ceiling suddenly collapsed 1338 | -10/Subcaves | Approached by a straggling Scientist 1379 | -10/Subcaves | Shifting Twisted Machinery released Mak. Light Armor Plating 1418 | -10/Subcaves | Shifting Twisted Machinery released Mak. Spear 1863 | -10/Subcaves | Learned Materials security intel 1928 | -10/Subcaves | Ambushed by angry Subdweller bent on revenge 1929 | -10/Subcaves | Core integrity fell below 50% 2673 | -10/Subcaves | Discovered new exit (range 14) 2804 | -10/Subcaves | Entered Materials 2804 | -8/Materials | Evolved 4 slots: Utility x2, Weapon x2 2805 | -8/Materials | Loaded intel: 17 trap records 2959 | -8/Materials | Lost 6 parts (1p2n3w) 2981 | -8/Materials | Discovered new exit (range 8) 3069 | -8/Materials | Lost 3 parts (1n2w) 3332 | -8/Materials | Build established: Tank 3335 | -8/Materials | Entered Storage 3578 | -8/Storage | Identified exit to Garrison 3710 | -8/Storage | Entered Garrison 3798 | -8/Garrison | Garrison Relay disabled 3997 | -8/Garrison | Triggered checkpoint 4164 | -8/Garrison | Triggered checkpoint 4275 | -8/Garrison | Phase Generator disabled 4277 | -8/Garrison | Garrison Relay disabled 4340 | -8/Garrison | Discovered new exit (range 10) 4397 | -8/Garrison | Garrison Relay disabled 4438 | -8/Garrison | Triggered checkpoint 4462 | -8/Garrison | Triggered checkpoint 4463 | -8/Garrison | Core integrity fell below 50% 4515 | -8/Garrison | Garrison Relay disabled 4731 | -8/Garrison | Rescued a captive Derelict 4732 | -8/Garrison | Rescued a captive Derelict 4932 | -8/Garrison | Triggered checkpoint 5011 | -8/Garrison | Discovered new exit (range 10) 5050 | -8/Garrison | Triggered checkpoint 5096 | -8/Garrison | Triggered checkpoint 5125 | -8/Garrison | Garrison Relay disabled 5212 | -8/Garrison | Discovered new exit (range 73) 5212 | -8/Garrison | Discovered new exit (range 22) 5212 | -8/Garrison | Discovered new exit (range 47) 5352 | -8/Garrison | Build established: Scavenger-Tank 5357 | -8/Garrison | Lost 4 allies 5573 | -8/Garrison | Triggered checkpoint 5711 | -8/Garrison | Garrison Relay disabled 5764 | -8/Garrison | Installed Relay Interface Framework 5883 | -8/Garrison | Entered Recycling 5883 | -8/Recycling | Accompanied by 2 allies 5884 | -8/Recycling | Met a Zionite searching for Scraptown 6025 | -8/Recycling | Discovered new exit (range 14) 6073 | -8/Recycling | Entered Scraplab 6074 | -8/Recycling | Build established: Bothacker-Tank 6305 | -8/Recycling | Entered Factory 6305 | -6/Factory | Evolved 4 slots: Utility x4 7027 | -6/Factory | Repaired Arm. Wheel 7061 | -6/Factory | Repaired Arm. Wheel 7170 | -6/Factory | Cargo convoy interrupted 7373 | -6/Factory | Build established: Scavenger-Tank 8401 | -6/Factory | Build established: Hacker-Gunner 8512 | -6/Factory | Lost 4 parts (1u3w) 8554 | -6/Factory | Lost 3 parts (1p1u1w) 8659 | -6/Factory | Identified exit to Lower Caves 8659 | -6/Factory | Identified exit to Extension 8755 | -6/Factory | First assault squad dispatched 8804 | -6/Factory | Entered Extension 8862 | -6/Extension | Core integrity fell below 50% 8945 | -6/Extension | Rescued a captive Derelict 8947 | -6/Extension | Rescued a captive Derelict 9029 | -6/Extension | Energy Cycler disabled 9029 | -6/Extension | Rescued a captive Derelict 9029 | -6/Extension | Rescued a captive Derelict 9030 | -6/Extension | Rescued a captive Derelict 9030 | -6/Extension | Rescued a captive Derelict 9031 | -6/Extension | Rescued a captive Derelict 9056 | -6/Extension | Lost 4 allies 9363 | -6/Extension | Build established: Bothacker-Gunner 9717 | -6/Extension | Spotted B-75 Beast 9749 | -6/Extension | Destroyed B-75 Beast 9757 | -6/Extension | Spotted B-75 Beast 9767 | -6/Extension | Allies destroyed B-75 Beast 9775 | -6/Extension | Discovered new exit (range 19) 9816 | -6/Extension | Identified exit to Factory 9852 | -6/Extension | Extracted ID and sensor layout for unrecognized location from A7's data core 9957 | -6/Extension | Identified exit to Cetus 10337 | -6/Extension | Discovered exit to Factory (range 10) 10379 | -6/Extension | Disrupted transfer network 10380 | -6/Extension | Entered Cetus 10380 | -6/Cetus | Accompanied by 10 allies 10398 | -6/Cetus | Spotted Cetus Guard 10398 | -6/Cetus | Spotted Cetus Guard 10401 | -6/Cetus | Spotted Cetus Guard 10401 | -6/Cetus | Spotted Cetus Guard 10406 | -6/Cetus | Destroyed Cetus Guard 10408 | -6/Cetus | Allies destroyed Cetus Guard 10415 | -6/Cetus | Allies destroyed Cetus Guard 10423 | -6/Cetus | Allies destroyed Cetus Guard 10443 | -6/Cetus | Lost 3 parts (3w) 10583 | -6/Cetus | Found a strange terminal 10617 | -6/Cetus | Discovered new exit (range 21) 10650 | -6/Cetus | Spotted Cetus Guard 10651 | -6/Cetus | Spotted Cetus Guard 10654 | -6/Cetus | Spotted Cetus Guard 10654 | -6/Cetus | Spotted Cetus Guard 10661 | -6/Cetus | Destroyed Cetus Guard 10668 | -6/Cetus | Destroyed Cetus Guard 10675 | -6/Cetus | Destroyed Cetus Guard 10678 | -6/Cetus | Discovered exit to Factory (range 22) 10683 | -6/Cetus | Destroyed Cetus Guard 10711 | -6/Cetus | Lost 4 allies 10718 | -6/Cetus | Met Revision 17 10859 | -6/Cetus | Identified exit to Archives 10873 | -6/Cetus | Entered Archives 10873 | -6/Archives | Accompanied by 4 allies 10934 | -6/Archives | Lost 4 allies 10961 | -6/Archives | Discovered new exit (range 22) 10966 | -6/Archives | Build established: Scavenger-Gunner 10971 | -6/Archives | Unable to access archive contents 10985 | -6/Archives | Unable to access archive contents 10993 | -6/Archives | Discovered exit to Factory (range 15) 11001 | -6/Archives | Unable to access archive contents 11009 | -6/Archives | Discovered new exit (range 17) 11019 | -6/Archives | Unable to access archive contents 11209 | -6/Archives | Identified exit to Hub_04(d) 11240 | -6/Archives | Entered Hub_04(d) 11240 | -6/Hub_04(d) | Accompanied by 6 allies 11323 | -6/Hub_04(d) | Build established: Bothacker-Gunner 11465 | -6/Hub_04(d) | Spotted B-75 Beast 11485 | -6/Hub_04(d) | Core integrity fell below 20% 11513 | -6/Hub_04(d) | Destroyed B-75 Beast 11523 | -6/Hub_04(d) | Lost 5 parts (2n1u2w) 11539 | -6/Hub_04(d) | Lost 4 allies 11906 | -6/Hub_04(d) | Entered Factory 11906 | -5/Factory | Accompanied by 3 allies 11906 | -5/Factory | Evolved 2 slots: Propulsion x1, Utility x1 12192 | -5/Factory | Lost 3 allies 12235 | -5/Factory | Lost 3 parts (1p2w) 12471 | -5/Factory | Build established: Scavenger-Skirmisher 12693 | -5/Factory | Discovered new exit (range 8) 12703 | -5/Factory | Identified exit to Upper Caves 13029 | -5/Factory | Identified exit to Garrison 13029 | -5/Factory | Entered Garrison 13029 | -5/Garrison | Spotted B-90 Cyclops 13036 | -5/Garrison | Spotted B-86 Titan 13041 | -5/Garrison | Rewired B-90 Cyclops 13053 | -5/Garrison | Rewired B-86 Titan 13090 | -5/Garrison | Core integrity fell below 50% 13149 | -5/Garrison | Lost 10 parts (2p2n3u3w) 13181 | -5/Garrison | Core integrity fell below 20% 13212 | -5/Garrison | Lost 8 parts (2n4u2w) 13237 | -5/Garrison | Destroyed by B-86 Titan with Railgun Last Messages --------------- 13212_ Field strength at 34. 13213_ Field strength at 28. 13214_ Field strength at 22. 13215_ Field strength at 16. 13216_ Field strength at 10. 13217_ Field strength at 4. 13218_ Stasis field depleted. 13226_ Slug penetrates G-50 Soldier. 13226_ G-50 Soldier destroyed. 13226_ Slug penetrates Wall. 13227_ Acquired 35 matter. 13227_ Triggered Stasis Trap. 13227_ A bubble of rippling energy engulfs the area. 13227_ Field strength at 94. 13227_ Field strength at 88. 13232_ Enh. Optical Array blasted off. 13233_ B-86 Titan activates siege mode. 13237_ Imp. Plasma Cutter destroyed. 13237_ Penetrated by Slug. Map ----- +----------------------------------------------------+ | ??????????????# " " " #????????#" ! = | | ??????????????# " " " #???????###%% | | ??????????????# """ "" #???????# " %% | | ??????????????# ^^ #??????####% % | | ??????????????#### ####?###### "!% ] ! | | ?????????????????##### #????# ## # | | ?????????????????????# ###### ####" | | ?????????????????????# !%! [ | | ?????????????????????# ! | | ?????????????????????# ############"### " "" " | | ?????????????????????# ##?????????###?##" """ " | | ?????????????????????# "#???????????????######### | | ?????????????????????# ##???????????????????????? | | ?????????????????????# #????????????????????????? | | ?????????????????????# #????????????????????????? | | ?????????????????????# #???????###??????????????? | | ?????????????????????# #??????? #??????????????? | | ?????????????????????# #???????# #??????????????? | | ????????????????????## #???????# #??????????????? | | ??????????###########; #???????# #??????????????? | | ??????????# %#???????# #??????????????? | | ??????????# #???????# "??????????????? | | ??????????# #########BB#???????# "??????????????? | | ??????????# ????????#BB;???????# "??????????????? | | ??????????# ?????##### %;######## ##########""""" | | ??????????# s s s @= | | ??????????#??????# ### ############### | | ?????????????????????# #???????????????????? | | ?????????????????????# #????????????????????????? | | ?????????????????????# #????????????????????????? | | ????????????????????? #????????????????????????? | | ???????????????????? #????????????????????????? | | ????????????????????#####????????????????????????? | | ?????????????????????????????????????????????????? | | ?????????????????????????????????????????????????? | | ?????????????????????????????????????????????????? | | ?????????????????????????????????????????????????? | | ?????????????????????????????????????????????????? | | ?????????????????????????????????????????????????? | | ?????????????????????????????????????????????????? | | ?????????????????????????????????????????????????? | | ?????????????????????????????????????????????????? | | ?????????????????????????????????????????????????? | | ?????????????????????????????????????????????????? | | ?????????????????????????????????????????????????? | | ?????????????????????????????????????????????????? | | ?????????????????????????????????????????????????? | | ?????????????????????????????????????????????????? | | ?????????????????????????????????????????????????? | | ?????????????????????????????????????????????????? | +----------------------------------------------------+ Best States ------------- Heat Dissipation 83 Energy Generation 25 Energy Capacity 350 Matter Stores 490 Matter Capacity 550 Sight Range 22 Robot Scan Range 20 Terrain Scan Range 16 Terrain Scan Density 210 Jamming Range 12 Armor Coverage 675 Resistance: EM 15 Weapon Shielding 33 Evasion (%) 50 Targeting Accuracy 8 Recoil Reduction 3 Offensive Hacking 12 Defensive Hacking 12 Relay Coupler Types 3 Relay Coupler Value 62 Item Schematics ----------------- Arm. Wheel | -6/Factory | Scanalyzed Multitool | -6/Factory | Scanalyzed Robot Schematics ------------------ None Fabricated ------------ Nothing Repaired ---------- Arm. Wheel | 5% | -6/Factory Arm. Wheel | 38% | -6/Factory Alien Tech Used ----------------- None Achievements -------------- None Challenges ------------ None Game ------ Seed DisintegrationShieldAxe Manual? 0 Play Time 02:01:29 Cumulative 214.1 hours Start 2025.05.30 @ 13:34:28 End 2025.05.30 @ 15:37:44 Sessions 1 Manual Loads 0 Difficulty Rogue Special Mode None Game No. 225 Rogue 225 Adventurer 0 Explorer 0 Win Type - Total 1 Types 1/0/0/0/0/0/0/0/0/0 Lore% 73 Gallery% 72 Achievement% 64 Wizard Run 0 Options --------- Layout 1 ASCII 0 Keyboard 0 Movement Numpad Keybinds 0 Fullscreen 1 Font 24/Smallcaps Map View 50x35 Zoom Use 0% Tactical HUD 1 Map Filters NONE Filters NONE Steam 1 RUN: 7f1862b1-319e-4452-b914-e77e6a59d6ad